{"text_format":"3","workbook":"xlsx","n_sheets":1,"sheets":["Sheet1"],"not_rendered":{"defined_names":1},"read":"whole","date_system":"1900"}

{"sheet":"Sheet1","index":0,"n_rows":22,"n_cols":58,"rows_kept":22}
[{"$nulls":7},"   "]
[]
[]
[{"$nulls":3},"Заказ на  учебники федерального перечня на татарском языке (переводные), 2016/2017 учебный год"]
[]
[]
[{"$nulls":8},1,1,null,1,null,null,1,{"$nulls":6},1,{"$nulls":3},1,null,1,null,1,null,1,{"$nulls":6},1,null,null,1,null,1,1,1,{"$nulls":3},1,1,1]
[null,null,"Порядковый номер учебника","Автор/авторский коллектив","Наименование учебника","Класс","Наименование издателя(ей) учебника",null,"Агрызский","Азнакаевский","Аксубаевский"," Татарско- Ямалинская ООШ","Алексеевский","Алькеевский","Альметьевский","Апастовский","Арский","Атнинский","Бавлинский","Балтасинский","Бугульминский","Буинский","Верхнеуслонский","Высокогорский","Дрожжановский","Елабужский","Заинский","Зеленодольский","Кайбицкий","Камско-Устьинский","Кукморский","Лаишевский","Лениногорский","Мамадышский","Мензелинский","Менделеевский","Муслюмовский","г. Наб. Челны","Нижнекамский","Новошешминский","Нурлатский","Пестречинский","Рыбно-Слободский","Сармановский","Спасский","Тетюшский","Тукаевский","Тюлячинский","Черемшанский","Чистопольский","Ютазинский","Авиастроительный","Вахитовский","Кировский","Московский","Ново-Савиновский","Приволжский","Советский"]
[{"$nulls":6},"Полное наименование  грузополучателя для накладных (Отдел образования ) ДЛЯ НАКЛАДНЫХ",null,"МКУ Управление образования Агрызского муниципального района","Муниципальное казенное учреждение \"Управление образования\" исполнительного комитета Азнакаевского муниципального района","Муниципальное казённое учреждение \"Отдел образования\" Аксубаевского муниципального района","Татарско- Ямалинская ООШ","Муниципальное Казенное Учреждение  \"Отдел образования Алексеевского муниципального района РТ\"","МКУ  «Управление образованием Алькеевского МР»","Управление образования  Альметьевского муниципального района РТ","МКУ \"Отдел образования исполнительного комитета Апастовского муниципального района РТ\"","МУ\"Управление образования\"исполнительного комитета Арского муниципального района","МКУ \"Отдел образования\" Атнинского районного исполнительного комитета","Муниципальное казенное учреждение «Отдел образования Бавлинского муниципального района РТ»","МКУ \"Управление образования Балтасинского районного исполнительного комитета\"","Муниципальное бюджетное учреждение образования Бугульминского муниципального района РТ","МКУ \"Управление образования Буинского муниципального района\"","МКУ\"Отдел образования\"Верхнеуслонского муниципального района РТ","МУ \"Отдел образования исполнительного комитета Высокогорского муниципального района Республики Татарстан\"","МКУ\" Отдел образования Исполнительного комитета Дрожжановского муниципального района Республики Татарстан\"","МКУ \"Управление образования  Исполнительного комитета Елабужского муниципального района\" РТ","МКУ \"Управление образования Исполнительного комитета Заинского муниципального района Республики Татарстан\"","Управление образования Исполнительного комитета Зеленодольского муниципального района","МКУ \"Отдел образования исполнительного комитета Кайбицкого муниципального района Республики Татарстан\"","Муниципальное казенное  учреждение \"Управление образования\" Камско-Устьинского муниципального района","МУ \"Управление образования Исполнительного комитета Кукморского муниципального района РТ\"","Муниципальное казенное учреждение \"Управление образования Лаишевского муниципального района Республики Татарстан","Муниципальное казенное учреждение\"Управление  образования\"исполнительного комитета муниципального образования \"Лениногорский муниципальный район\" РТ","Муниципальное казенное учреждение \"Отдел образования\" Исполнительного комитета Мамадышского муниципального района РТ","Муниципальное казенное учреждение \"Отдел образования\" исполнительного комитета Мензелинского муниципального района Республики Татарстан","МУ «Управление образования исполнительного комитета Менделеевского муниципального района РТ»","Муниципальное казенное учреждение «Управление образования Муслюмовского муниципального района Республики Татарстан»","МБУ \"Информационно-методический центр\"г. Набережные Челны пр-т Чулман д.56 (42/18)","Управление образования Исполнительного комитета Нижнекамского муниципального района РТ","МУ\"Отдел образования исполнительного комитета Новошешминского муниципального района РТ\"","МКУ \"Управление образования\" Нурлатского муниципального района Республики Татарстан","МБУ \"Отдел образования\" Пестречинского муниципального района","Муниципальное казенное учреждение \"Отдел образования Исполнительного комитета Рыбно-Слободского муниципального района","Отдел образования Исполнительного комитета Сармановского муниципального района","МУ \"Отдел образования Исполнительного комитета Спасского муниципального района \"","МКУ \"Отдел образования Исполнительного комитета Тетюшского муниципального района Республики Татарстан\"","МБУ \"Управление образования Тукаевского муниципального района Республики Татарстан\"","МКУ \"Отдел образования \nИсполнительного комитета Тюлячинского муниципального района РТ\"","Муниципальное учреждение \"Отдел образования\" исполнительного комитета Черемшанского муниципального района Республики Татарстан","МКУ «Управление образования Исполнительного комитета Чистопольского муниципального района Республики Татарстан»","Муниципальное казенное учреждение «Отдел образования Исполнительного комитета Ютазинского муниципального района Республики Татарстан»","Отдел Управления образования Исполнительного комитета муниципального образования г.Казани по Авиастроительному и Ново-Савиновскому районам","Отдел Управления образования Исполнительного комитета муниципального образования г.Казани по Вахитовскому и Приволжскому районам","Отдел Управления образования Исполнительного комитета муниципального образования г.Казани по Кировскому и Московскому районам","Отдел Управления образования Исполнительного комитета муниципального образования г.Казани по Кировскому и Московскому районам","Отдел Управления образования Исполнительного комитета муниципального образования г.Казани по Авиастроительному и Ново-Савиновскому районам","Отдел Управления образования Исполнительного комитета муниципального образования г.Казани по Вахитовскому и Приволжскому районам","Управление образования Исполнительного комитета муниципального образования города Казани по Советскому району"]
[{"$nulls":6},"ИНН (Отдел образования)",null,1601006344,163011811,1603001278," ",1605007370,1606001251,1644063820,1608007731,1609010600,1610000758,1611002290,1612000000,1645020875,1614010524,1615007740,1616021120,1617004423,1646019470,1647014806,"своего ИНН нет, только Исполнительного комитета",1621002980,1622000880,1623008313,1624446528,1649018806,1626002503,1628008934,1627007381,1629004957,1650109409,1651020506,1631000212,1632010446,1633000183,1634008185,1636006786,1637006517,1638011140,1639012019,1619000311,1640004728,1652017545,1642005533,1655065593,1655065593,1655065593,1655065593,1655065593,1655065593,"1655065593,КПП 165501001"]
[{"$nulls":6},"Адрес доставки",null,"г.Агрыз ул. Карла Маркса, дом 8","Республика Татарстан, Азнакаевский район, г. Азнакаево, ул. Ленина, 23 (ИМО)","423060 пгт Аксубаево, ул. Романова 1","423740, Республика Татарстан село Татар Ямалы пр. Ленина д.1","пгт Алексеевское  ул.Казакова д. 9Б","  422870  РТ  Алькеевский район, д.Баз.Матаки, ул.Советская, д.11  (Дом детского творчества)","г. Альметьевск, ул. Р. Фахретдина, д.50","422350,РТ.Апастовский раон,п.г.т. Апастово, ул.Шоссейная д.6","РТ, г. Арск, ул. Вагизовых, д. 11","422750 РТ Атнинский район с.Большая Атня ул.Октябрьская,9","423930, РТ, г. Бавлы, пл.Победы, д.5","пгт Балтаси, ул Ленина, 63","Республика Татарстан, 423230, г.Бугульма, ул.14-Павших, д.39","422430 Республика Татарстан, г.Буинск, ул. Р.Люксембург, д.66","РТ,Верхнеуслонский район ,с.Верхний Услон,ул.Чехова,18","422700, РТ, Высокогорский район, жд/ст.Высокая гора, ул.Школьная, д.17","422470, РТ, Дрожжановский район,с.Ст. Дрожжаное, ул. Центральная 14 А.","423630 г.Елабуга, пр. Нефтяников, д.175","423520, РТ, г. Заинск, ул. Энергетиков, д. 2а (МБДОУ \"Дом детского творчеста\")","г. Зеленодольск ул. Столичная д.17а","422330, Республика Татарстан, кайбицкий район, с.Большие Кайбицы, Солнечный бульвар, дом 7","422820,               Камско-Устьинский район,пгт.       Камское  Устье,ул. Ленина,д.57","422110, РТ, Кукморский район, пгт Кукмор, ул. Рабочий Переулок, 7","г.Лаишево, ул.Маяковского д.16","РТ, г.Лениногорск, ул.Шашина, д.22  (Муниципальное казенное учреждение \"Управление  образования\" испонительного комитета муниципального образования \"Лениногорский муниципальный район\" РТ)","422190, г.Мамадыш, ул.Советская, дом 2а, отдел образования","РТ, г. Мензелинск, ул. Коммунистическая, д.25","423650,РТ, г.Менделеевск , ул.Фомина,19","423970, РТ, Муслюмовский район, с.Муслюмово, ул.Гагарина, д.11","г. Набережные Челны п.ЗЯБ,ул.Х.Такташа,36/37(16/37) МБОУ СОШ№ 8","г.Нижнекамск, ул.Б.Урманче, д.13 (Гимназия № 2)","423190,с.Новошешминск,ул.Набережная, 2(МБОУ \"Новошешминская средняя общеобразовательная школа Новошешминского муниципального района РТ\")","Нурлатский район, г.Нурлат, ул. Самаренкина, дом.4","422770 РТ Пестречинский муниципальный район с.Пестрецы ул . Почтовая д.1","Рыбно-Слободский район, пгт. Рыбная Слобода, ул.Ленина, д.42 Б","ул.Куйбышева 31","РТ, Спасский район, г.Болгар, ул.Пионерская, 19","РТ, г. Тетюши, ул. Свердлова, д. 32 ","423895, Республика Татарстан, Тукаевский район, с. Нижний Суык-Су, ул. Школьная, д. 1 (МБОУ \"Нижнесуыксинская СОШ\")","с.Тюлячи ул Большая Нагорная д.42\n(МКУ \"Отдел образования \nИсполнительного комитета Тюлячинского муниципального района РТ\"","423100, Респулика Татарстан, Черемшанский район, с. Черемшан, ул. Гагарина, д.7","РТ, г.Чистополь, ул.К.Маркса, 21","Республика Татарстан, Ютазинский район, п.г.т. Уруссу, ул. Пушкина, д.38","420044, г.Казань, ул.Волгоградская, 39","420107, г.Казань, ул.Х. Такташ,81","420039, г.Казань, ул.Городская, 2","420039, г.Казань, ул.Городская, 2","420044, г.Казань, ул.Волгоградская, 39","420107, г.Казань, ул.Х. Такташ,81","г.Казань 420087 .ул Р.Зорге 1 а МБОУ \"СОШ 79"]
[{"$nulls":6},"ФИО контактного лица",null,"Миннихаметова Гульфира Габделхаевна","Игтисамова Гульгена Фагимовна","Парасташвили Вера Михайловна"," Мухтарова А.А.","Антонова Оксана Леонидовна","Зайнуллина Алсу Рафиковна","Артемьева Фания Закиевна","Хасанова Гульнур Наиловна","Феоктистова Гульфира Канафиевна","Ахметгалиева Гульшат Фанусовна","Шарифуллина Фарида Николаевна","Зигангирова Гульшат Рафисовна","Балашова Наталья Мухамедовна","Еремеева Зухра Анваровна","Насибуллина Гульшат якубовна","методист Сахапова Айгуль Исламовна","Мавзютов Ильнур Асхатович","Ибрагимова Гульфия Габдельхаковна","Миннуллина Розалия Миннахметовна","Костяшина Наталья Геннадьевна","Галиуллина Зульфия Зуфаровна","Абдулхакова Наиля Равильевна","Гавриленко Элизара Ильдусовна","Хусаинова Кадрия Хафизовна","Сидорова Югина Вячеславовна","Сафина Гузалия Мухаметзяновна","Зайнуллина Алмазия Билусовна","Чернова Ирина Николаевна","Баева Лилия Ахияровна","Минннегалиева Сария Нурмехаматовна- методист, Филиппова Надежда Ивановна- библиотекарь  ","Яковлева Людмила Ивановна","Халиуллина Наиля Саитовна","Ярмухаметова Фарида Минталибовна","Шамсутдинова Алсу Мансуровна","Ахметзянова Фирая Гумаровна","Мавлавиева Н.Т.","Миндубаева Резеда Ламисовна ","Белякова Наталья Владимировна","Сергеева Елена Валерьевна","Габдрахманова \nГулюса Назиповна","Замалетдинова Венера Васильевна","Сираева Наиля Мансуровна","Гареева Раушания Фануровна","Федоренко Марина Владимировна","Габдулхаерова Алия Габдулхабировна","Назиева Лейсан Шагитовна","Назиева Лейсан Шагитовна","Федоренко Марина Владимировна","Габдулхаерова Алия Габдулхабировна","Майсейкова Фаузия Мирзакрямовна"]
[{"$nulls":6},"Телефон контакного лица, рабочий, сотовый",null,"8-85551-2-29-02,сот. 89033191545","8(85592)                7-66-79   89178507884","8843444 2-92-50; 8-9276797788, ","8(8555)5-75-57, ","8(84341)24192 (раб)                               89274056195 (сот)","88434621602; 89274157300","8 (8553) 45-16-42 , 89172894985",89061113671,"8(84366)3-30-12, 89272450455",89179142584,"8(5569) 5-44-59, 8-917-89-535-94","8 (84368)2-41-95     сот 89872889849","8(85594) 6-57-68\n89625786730","884374-3-54-88; 89179217561","88437921844, 89272426237",89377790140,"8843752-26-74,8843752-22-54,89274299929","8(85557) 7-92-26, 89178920637","8(8555)870783, 89503172819","(884371)4-97-53; 89047643364","89274420296 (сот.), 8(843)702-15-76(раб)","8(84377)2-18-92 89520421225","8(84364)2-83-08                  8(909)306-26-88","88437825804, 89274226975","8(85595)5-09-97, 8-917-390-32-25","(8855)63-3-29-86; 89172532031","8(85555) 32845, 8-962-565-52-58","89274714343;          2-08-98","89270450004,   89179088094","раб  ИМЦ8(855)2529555,52-51-62, 89178718876,раб СОШ№8 8(855)2466632, 89276728034","раб.тел.: 47-30-28;                                                    сот.тел.: 8-919-680-70-78","8(843)4822704, 89179137015","88434520702, 89274635041"," сот. 8-900-327-17-52. раб 3-06-58","89003269906, 88436122430","8(855595)25494; сот 89274869986","8-84347-31085 (раб.) 89377758569 (моб.)","8(84373)2-53-31, 2-53-28, сот.: 89178580628","8(8552)70-35-06, 8-906-330-98-38","(884360) 21-462, 21-267\n89534895168","8(84396)2-57-27, 89178920897","8(84342)5-35-23 89276706860",89274826545,"8-903-306-21-38","8-960-042-08-06","8-962-549-41-75","8-962-549-41-75","8-903-306-21-38","8-960-042-08-06","272-66-15, 89093076816"]
[]
[null,3,"1.1.2.1.11.1","Чекин А. Л.","Математика (в 2-х частях)","1","Издательство «Академкнига/Учебник»","Хэтер",{"$nulls":6},0,null,277,75,{"$nulls":4},4,null,0,0,null,14,null,10,55,null,null,38,null,null,15,0,0,{"$nulls":8},25,null,24,null,0,{"$nulls":3},0]
[null,7,"1.1.5.1.10.1","Шпикалова Т.Я., Ершова Л.В.","Изобразительное искусство","1","Издательство «Просвещение»","Хэтер",55,55,null,8,10,65,14,28,150,30,58,null,3,50,null,70,10,3,59,175,4,{"$nulls":4},178,null,6,null,442,22,null,33,60,null,41,16,31,null,null,35,null,6,95,null,25,40,0,30]
[null,10,"1.2.2.2.1.2","Агибалова Е.В., Донской Г.М.","Всеобщая история. История Средних веков","6","Издательство «Просвещение»","Хэтер",70,92,75,7,30,53,236,85,null,null,48,269,null,120,null,95,46,10,74,257,45,35,235,55,48,170,31,43,82,109,39,49,42,63,90,99,21,32,48,100,38,60,21,51,60,35,95,0,70,99]
[null,12,"1.2.2.4.2.2","Герасимова Т.П., Неклюкова Н.П.","География","6","ДРОФА","Хэтер",{"$nulls":3},7,30,53,316,null,null,135,53,269,null,120,null,null,69,10,33,257,39,35,6,55,58,null,40,43,82,89,44,49,57,63,90,null,21,null,60,100,58,28,16,0,60,35,10,0]
[{"$nulls":8},{"$f":"SUM(I15:I18)","v":125},147,75,22,70,171,566,113,427,240,159,538,3,290,4,165,125,23,166,703,88,80,296,110,106,386,71,92,179,640,105,98,{"$f":"SUM(AO15:AO18)","v":132},186,180,140,58,63,108,225,131,112,43,146,120,95,145,0,100,99]
[]
[{"$nulls":4},"Директор:",null,"Хузин И.Т."]
[{"$nulls":4},"Библиотекарь:",null,"Мухтарова А.А."]